Cogmind - Beta 17 @@@ ROGUE MODE // 2026.07.19 @ 17:02:15 Player: CONM Result: Self-destructed Performance ------------- Evolutions (1) 500 Regions Visited (3) 600 Robots Destroyed (21) 105 Value Destroyed (474) 474 Prototype IDs (0) 0 Alien Tech Used (0) 0 Bonus (0) 0 TOTAL SCORE: 1679 Bonus ------- None Cogmind --------- Core Integrity 373/400 Matter 170/300 Energy 160/160 System Corruption 0% Temperature Cool (0) Movement Rolling (110) Ox2 Location -9/Materials Parts ------- > --- POWER (1) -------- Light Nuclear Core > --- PROPULSION (2) --- Wheel Wheel > --- UTILITY (4) ------ High-capacity Storage Unit Structural Scanner Signal Interpreter Light Armor Plating > --- WEAPON (2) ------- Assault Rifle Heavy Assault Rifle > --- INVENTORY (20) --- Light Ion Engine Light Treads Light Treads Aluminum Leg Compact Wheel Hover Unit Heat Sink Heat Sink Large Storage Unit Sensor Array Light Armor Plating Tractor Beam Beam Cannon Beam Cannon Grenade Launcher Grenade Launcher Grenade Launcher Peak State ------------ > --- POWER ------------ Light Nuclear Core > --- PROPULSION ------- Wheel Wheel > --- UTILITY ---------- High-capacity Storage Unit Structural Scanner Sensor Array Light Armor Plating > --- WEAPON ----------- Heavy Assault Rifle Grenade Launcher > --- INVENTORY -------- Light Ion Engine Light Treads Light Treads Aluminum Leg Compact Wheel Hover Unit Heat Sink Heat Sink Large Storage Unit Light Armor Plating Tractor Beam Beam Cannon Beam Cannon Assault Rifle Grenade Launcher Grenade Launcher [Rating: 13] Favorites ----------- Power Light Ion Engine Engine Light Ion Engine Power Core Light Nuclear Core Propulsion Wheel Treads Light Treads Wheel Wheel Utility Light Armor Plating Device Tractor Beam Storage High-capacity Storage Unit Processor Signal Interpreter Protection Light Armor Plating Weapon Assault Rifle Ballistic Gun Assault Rifle Launcher Grenade Launcher Build | -11 -10 -10 -9 ------- Run | Yrd Mat Min Mat Slots Evolved 2 | . . . 2 Power . | . . . . Propulsion . | . . . . Utility 2 | . . . 2 Weapon . | . . . . Parts Attached 20 | 7 6 . 7 Power 2 | 1 . . 1 Engine 1 | 1 . . . Core 1 | . . . 1 Reactor . | . . . . Propulsion 5 | 2 3 . . Treads 2 | 2 . . . Leg . | . . . . Wheel 3 | . 3 . . Hover . | . . . . Flight . | . . . . Utility 9 | 2 3 . 4 Device 3 | 1 . . 2 Storage 3 | 1 2 . . Processor 1 | . . . 1 Hackware . | . . . . Protection 2 | . 1 . 1 Artifact . | . . . . Weapon 4 | 2 . . 2 Energy Gun . | . . . . Energy Cannon . | . . . . Ballistic Gun 3 | 2 . . 1 Ballistic Cannon . | . . . . Launcher 1 | . . . 1 Special Weapon . | . . . . Impact Weapon . | . . . . Slashing Weapon . | . . . . Piercing Weapon . | . . . . Special Melee Weapon . | . . . . Unidentified Prototypes . | . . . . Parts Lost 2 | . 1 1 . Power 1 | . . 1 . Propulsion 1 | . 1 . . Utility . | . . . . Weapon . | . . . . Highest Loss Streak 1 | . 1 1 . To Critical Strikes . | . . . . Average Backups 11 | 1 10 17 16 Power 1 | . 1 2 1 Propulsion 3 | . 3 4 5 Utility 3 | . 3 6 5 Weapon 2 | . 2 5 5 Tool/Special . | . . . . Unused Backups 10 | . . . 10 Power 1 | . . . 1 Propulsion 3 | . . . 3 Utility 2 | . . . 2 Weapon 4 | . . . 4 Tool/Special . | . . . . Average Slot Usage (%) 96 | . 99 90 92 Engine 10 | . 14 5 . Core 1 | . . . 11 Treads 5 | . 8 . . Wheel 21 | . 18 28 22 Device 5 | . 6 . 13 Storage 13 | . 14 14 11 Protection 9 | . 7 14 8 Ballistic Gun 26 | . 28 28 17 Peak Build Rating 13 | 7 8 8 13 Average Rating 7 | 5 7 7 12 On Entrance 5 | . 7 8 8 Avg Prop Armor Cover (%) . | . . . . Naked Turns . | . . . . Heaviest Build 56 | 13 50 50 56 Greatest Support 40 | 40 40 20 20 Greatest Overweight (x) 4 | . 4 2 2 Average Overweight (x) 1 | . 1 2 2 Largest Inventory Capacity 20 | 8 20 20 20 Average Capacity 15 | 7 14 20 20 Most Carried 18 | 3 17 18 17 Average Carried 11 | 1 10 17 16 Final Capacity 20 | 8 20 20 20 Final Carried 18 | 3 17 18 17 Class Distribution -------------------- 95% | Mutant 4% | Skirmisher Dominant Class ---------------- Mutant | -10/Materials Mutant | -10/Mines Skirmisher | -9/Materials Resources | -11 -10 -10 -9 ----------- Run | Yrd Mat Min Mat Matter Collected 694 | 274 318 102 . Remotely 287 | 116 171 . . Salvage Created 691 | 71 578 42 . Parts 51 | 1 47 3 . Haulers Intercepted 1 | . 1 . . Recyclers Shooed 1 | . . 1 . Parts Field Recycled . | . . . . Retrieved Matter . | . . . . Parts Self-Destructed . | . . . . Prevented . | . . . . Parts Restored . | . . . . Kills | -11 -10 -10 -9 ------- Run | Yrd Mat Min Mat Combat Hostiles Destroyed 19 | . 16 3 . Guns 19 | . 16 3 . Classes Destroyed 4 | 1 3 . . Hauler 1 | . 1 . . Recycler 1 | 1 . . . Swarmer 9 | . 6 3 . Grunt 10 | . 10 . . Best Kill Streak 4 | 1 4 2 . Combat Bots Only 4 | . 4 2 . Max Kills in Single Turn 1 | 1 1 1 . Gunslinging . | . . . . Exploded . | . . . . Melee . | . . . . Uniques/NPCs Destroyed . | . . . . Combat | -11 -10 -10 -9 -------- Run | Yrd Mat Min Mat Hostile Shots Fired 74 | . 57 11 6 Missed 21 | . 18 1 2 Hits 53 | . 39 10 4 Projectile 53 | . 39 10 4 Critical Strikes 2 | . 1 . 1 Damage Taken 555 | . 423 77 55 Core 149 | . 105 17 27 Absorbed by Shields . | . . . . Core Remaining (%) 75 | 100 . 51 . Volleys Fired 55 | 1 39 9 6 Largest 2 | 2 2 2 2 Hottest 43 | 40 40 40 43 Shots Fired 107 | 2 78 18 9 Gun 106 | 2 78 18 8 Cannon . | . . . . Launcher 1 | . . . 1 Special . | . . . . Kinetic 106 | 2 78 18 8 Thermal . | . . . . Explosive 1 | . . . 1 Electromagnetic . | . . . . Robot Hit Streak 11 | 2 11 5 . Robot Miss Streak 3 | . 3 2 . Penetration Max . | . . . . Secondary Targets . | . . . . Shots Hit Robots 65 | 2 53 10 . Core Hits 34 | 3 28 3 . Critical Kills . | . . . . Critical Parts Destroyed . | . . . . Critical Strikes . | . . . . Melee Attacks . | . . . . Impact . | . . . . Slashing . | . . . . Piercing . | . . . . Sneak Attacks . | . . . . Combat Hostiles . | . . . . Follow-up Attacks . | . . . . Damage Inflicted 801 | 21 652 128 . Guns 800 | 20 652 128 . Cannons . | . . . . Explosions . | . . . . Melee . | . . . . Ramming 1 | 1 . . . Kinetic 800 | 20 652 128 . Thermal . | . . . . Explosive . | . . . . Electromagnetic . | . . . . Impact . | . . . . Slashing . | . . . . Piercing . | . . . . Highest Corruption 5 | . 5 5 . Average Corruption 4 | . 4 5 . Corruption Purged . | . . . . Corruption Blocked . | . . . . Effects 32 | . 25 7 . Message Errors 5 | . 5 . . Matter Fused 11 | . 8 3 . Heat Flow Errors 6 | . 5 1 . Energy Discharges 3 | . 3 . . Parts Fused 1 | . 1 . . Data Loss (minor) 2 | . 1 1 . Data Loss (major) 2 | . . 2 . Misfires 1 | . 1 . . Weapon Failures 1 | . 1 . . Overload Shots . | . . . . Overflow Damage . | . . . . Projectiles . | . . . . Explosions . | . . . . Melee . | . . . . Knockbacks . | . . . . Impact . | . . . . Kinetic . | . . . . Secondary . | . . . . Self-Inflicted Damage . | . . . . Shots . | . . . . Rammed 1 | 1 . . . Targets Rammed 1 | 1 . . . Kicked . | . . . . Crushed . | . . . . Highest Temperature 225 | . 202 225 9 Average Temperature 81 | . 75 114 9 Received Heat Transfer 153 | . 117 . 36 Siege Activations . | . . . . Martial Activations . | . . . . Shielding Activations . | . . . . Robots Disrupted . | . . . . Combat Hostiles . | . . . . Robots Corrupted . | . . . . Combat Hostiles . | . . . . Parts Fried . | . . . . Impact Corruptions . | . . . . Robots Melted . | . . . . Combat Hostiles . | . . . . Parts Melted . | . . . . Heat Transferred . | . . . . Parts Sabotaged . | . . . . Parts Stolen . | . . . . Parts Stripped . | . . . . Power Chain Reactions . | . . . . Alert | -11 -10 -10 -9 ------- Run | Yrd Mat Min Mat Maximum Alert Level . | . . . . Low Security (%) 100 | 100 100 100 100 Level 1 . | . . . . Level 2 . | . . . . Level 3 . | . . . . Level 4 . | . . . . Level 5 . | . . . . High Security . | . . . . Max Security . | . . . . Peak Influence 137 | 5 137 45 26 Initial 34 | . . 34 . Average 48 | . 71 13 3 Influence Increases 547 | 5 431 85 26 Destroy 0b10 Robot/C 380 | . 320 60 . Destroy 0b10 Robot/NC 10 | 5 5 . . Destroy Leader 72 | . 62 10 . Successful Hack 43 | . 43 . . Disable Machine 15 | . . . 15 Destroy Structure 12 | . 1 . 11 Lose Combat Pursuer 15 | . . 15 . Influence Decreases 547 | 5 343 173 26 Entered New Map 54 | . . 54 . Time Decay 473 | 5 333 109 26 Lost Part 20 | . 10 10 . Squads Dispatched 3 | . 3 . . Investigation 1 | . 1 . . Extermination . | . . . . Reinforcement 2 | . 2 . . Assault . | . . . . Garrison . | . . . . Intercept . | . . . . Searches Triggered . | . . . . Construction Impeded . | . . . . Haulers Reinforced . | . . . . Active Scanning Responses . | . . . . Cargo Convoy Interrupts . | . . . . Stealth | -11 -10 -10 -9 --------- Run | Yrd Mat Min Mat Distress Signals 3 | . 3 . . Communications Jammed . | . . . . Distress Signals . | . . . . Times Spotted 34 | . 28 4 2 Peak Tracking Total 5 | . 5 3 2 Tactical Retreats 1 | . . 1 . Traps | -11 -10 -10 -9 ------- Run | Yrd Mat Min Mat Traps Triggered 4 | . 4 . . Indirectly . | . . . . Trap Hack Attempts . | . . . . Triggered . | . . . . Disarmed . | . . . . Reprogrammed . | . . . . Reused . | . . . . Traps Extracted . | . . . . Installed . | . . . . Triggered . | . . . . Machines | -11 -10 -10 -9 ---------- Run | Yrd Mat Min Mat Machines Disabled 1 | . . . 1 Max in Single Turn 1 | . . . 1 Machines Repaired . | . . . . Machines Dismantled . | . . . . Machines Sabotaged . | . . . . Overloaded Fab Kills . | . . . . Hacking | -11 -10 -10 -9 --------- Run | Yrd Mat Min Mat Machines Accessed 6 | . 6 . . Terminals 6 | . 6 . . Fabricators . | . . . . Repair Stations . | . . . . Recycling Units . | . . . . Scanalyzers . | . . . . Garrison Access . | . . . . Total Hacks 18 | . 18 . . Successful 11 | . 11 . . Failed 7 | . 7 . . Catastrophic . | . . . . Database Lockouts . | . . . . Manual 14 | . 14 . . Terminals 18 | . 18 . . Fabricators . | . . . . Repair Stations . | . . . . Recycling Units . | . . . . Scanalyzers . | . . . . Garrison Access . | . . . . Terminal Hacks 5 | . 5 . . Robot Analysis 1 | . 1 . . Terminal Index 1 | . 1 . . Registered Components 1 | . 1 . . Zone Layout 2 | . 2 . . Fabricator Hacks . | . . . . Repair Station Hacks . | . . . . Recycling Unit Hacks . | . . . . Scanalyzer . | . . . . Garrison Access Hacks . | . . . . Unauthorized Hacks 6 | . 6 . . Terminals 6 | . 6 . . Track 3 | . 3 . . Assimilate 1 | . 1 . . Botnet 1 | . 1 . . Operators 1 | . 1 . . Fabricators . | . . . . Repair Stations . | . . . . Recycling Units . | . . . . Scanalyzers . | . . . . Garrison Access . | . . . . Data Cores Recovered . | . . . . Used . | . . . . Hacking Detections 6 | . 6 . . Full Trace Events . | . . . . Feedback Events . | . . . . Feedback Blocked . | . . . . Robot Schematics Acquired . | . . . . Robots Built . | . . . . Authchips . | . . . . Time . | . . . . Total Robot Build Rating . | . . . . Part Schematics Acquired . | . . . . Parts Built . | . . . . Authchips . | . . . . Time . | . . . . Total Part Build Rating . | . . . . Part Studies Acquired . | . . . . Parts Repaired . | . . . . Time . | . . . . Parts Recycled . | . . . . Recycled Matter . | . . . . Retrieved Matter . | . . . . Retrieved Components . | . . . . Parts Scanalyzed . | . . . . Part Schematics Acquired . | . . . . Parts Damaged . | . . . . Bothacking | -11 -10 -10 -9 ------------ Run | Yrd Mat Min Mat Used RIF Installer . | . . . . Robots Hacked . | . . . . Non-combat . | . . . . Combat . | . . . . Robot Hacks Applied . | . . . . Relay Couplers Released . | . . . . Fabnet Peak Effective % . | . . . . Robots Rewired . | . . . . Allies Hacked . | . . . . Hacks Repelled . | . . . . Allies | -11 -10 -10 -9 -------- Run | Yrd Mat Min Mat Total Allies . | . . . . Largest Group . | . . . . Highest-Rated Group . | . . . . Highest-Rated Ally . | . . . . Total Orders . | . . . . Ally Attacks . | . . . . Total Damage . | . . . . Kills . | . . . . Allies Corrupted . | . . . . Allies Melted . | . . . . Intel | -11 -10 -10 -9 ------- Run | Yrd Mat Min Mat Active Infowar (turns) 140 | . . . 140 Sensors 45 | . . . 45 Structural 140 | . . . 140 Robot Analysis Total 1 | . 1 . . Derelict Logs Recovered . | . . . . Drone Launches . | . . . . Drone Recoveries . | . . . . Exploration | -11 -10 -10 -9 ------------- Run | Yrd Mat Min Mat Turns Passed 1486 | 92 947 306 141 Spaces Moved 1048 | 49 643 253 103 Core 3 | 3 . . . Treads 194 | 46 148 . . Legs . | . . . . Wheels 851 | . 495 253 103 Hover . | . . . . Flight . | . . . . Fastest Speed 50 | 50 95 110 110 Average Speed 115 | 153 115 110 110 Slowest Speed 160 | 160 160 110 110 Overloaded Moves . | . . . . Propulsion Burnouts . | . . . . Robots Hopped . | . . . . Potential Cave-ins . | . . . . Cave-ins Triggered . | . . . . Exploration Rate (%) 40 | 3 96 50 12 Regions Visited 3 Branch Regions 1 Pre-discovered Areas . | . . . . Known Exits Taken . | . . . . Unknown Exits Taken 3 | 1 1 1 . Scrap Searched 1 | . . 1 . Spaces Dug . | . . . . Terrain Destroyed 11 | . . . 11 Melee . | . . . . Projectile . | . . . . AOE 11 | . . . 11 Terrain Rammed . | . . . . Walls Destroyed . | . . . . Machines Disabled . | . . . . Actions | -11 -10 -10 -9 --------- Run | Yrd Mat Min Mat Total 1205 | 60 765 262 118 Wait 61 | . 61 . . Move 1045 | 48 642 252 103 Hop . | . . . . Pick Up 20 | 3 15 1 1 Fast Attach 8 | 7 . . 1 Attach 3 | . 1 . 2 Detach . | . . . . Swap 11 | . 6 . 5 Drop 1 | . 1 . . Fire 55 | 1 39 9 6 Melee . | . . . . Ram . | . . . . Kick . | . . . . Crush 1 | 1 . . . Escape Stasis . | . . . . Rewire . | . . . . Trap . | . . . . Miscellaneous . | . . . . Route ------- -11/Scrapyard -10/Materials (discovered 4 exits: [*Mat x3] / [*Min]) -10/Mines -9/Materials History --------- Turn | Location | Event 62 | -11/Scrapyard | Discovered new exit (range 15) 93 | -11/Scrapyard | Entered Materials 304 | -10/Materials | Build established: Mutant 463 | -10/Materials | Discovered new exit (range 8) 566 | -10/Materials | Discovered new exit (range 4) 660 | -10/Materials | Discovered new exit (range 16) 834 | -10/Materials | Discovered new exit (range 16) 1040 | -10/Materials | Entered Mines 1079 | -10/Mines | Discovered new exit (range 15) 1346 | -10/Mines | Entered Materials 1346 | -9/Materials | Evolved 2 slots: Utility x2 1487 | -9/Materials | Self-destructed Last Messages --------------- 01264_ Found Power Shielding. 01264_ Found 44 Matter. 01265_ S-10 Pest destroyed. 01266_ Acquired 6 matter. 01283_ K-01 Serf collects debris. 01305_ System corrupted: Substantial component data lost. 01340_ System corrupted: Matter fused (-10). PARAMETERS=UTILITY+2 LOCATION=UNKNOWN GOAL=ESCAPE 01383_ Discarded Assault Rifle. 01387_ K-01 Serf collects debris. 01401_ TF Node disabled. 01401_ Sensor Array tumbles out of TF Node. 01401_ Signal Interpreter tumbles out of TF Node. 01401_ K-01 Serf collects debris. 01413_ Acquired Sensor Array. 01418_ The unstable cave ceiling collapses. 01419_ Acquired Signal Interpreter. 01484_ Critical hit (Burn: +37). Map ----- +----------------------------------------------------+ | ?????????????????????????????????????????????????? | | ?????????????????????????????????????????????????? | | ?????????????????????????????????????????????????? | | ?????????????????????????????????????????????????? | | ?????????????????????????????????????????????????? | | ?????????????????????????????????????????????????? | | ?????????????????????????????????????????????????? | | ?????????????????????????????????????????????????? | | ?????????????????????????????????????????????????? | | ?????????????????????????????????????????????????? | | ?????????????????????????????????????????????????? | | ?????????????????????????????????????????????????? | | ??? ## ###??????????????????????????????????????? | | ??? ## ###??????????????????????????????????????? | | ??? # ] ##??????????????????????????????????????? | | ????? ????????????????????????????????????????? | | ????? ????????????????????????????????????????? | | ????# #??????????######### ???????????????????? | | ????## ##??????????######### ???????????????????? | | ????## ##??????????## ! # ???????????????????? | | ????## ##??????????## + ???????????????????? | | ????## ##??????????##" !! # ???????????????????? | | ????## ##??????????##T !! # ???????????????????? | | ###?## ##??????????##" ! # ???????????????????? | | ###### ############## # ? ##???????????????? | | ##### #################@### ##???????????????? | | ##???????????????? | | r ##???????????????? | | ?????????? | | ################# ######+##############?????????? | | ################## #### ###########?????????? | | ########????????## ##????????????????????????????? | | ########????????## ##????????????????????????????? | | ##????????## ##????????????????????????????? | | ##????????## ##????????????????????????????? | | ##????????## ##????????????????????????????? | | ### # ????????## ##????????????????????????????? | | ### # ????????## ##????????????????????????????? | | ###? # ????????## ##????????????????????????????? | | ##?? + ????????## ##????????????????????????????? | | ##?? # ???????## ##????????????????????????????? | | ##?? # ??????## ##????????????????????????????? | | ##?????? ??????## ##????????????????????????????? | | ###?????????????## ##????????????????????????????? | | ###??????????????? ??????????????????????????????? | | ##???????????????? ??????????????????????????????? | | ???????????????? ??????????????????????????????? | | ?????????????????? ??????????????????????????????? | | ?????????????????? ??????????????????????????????? | | ?????????????????? ??????????????????????????????? | +----------------------------------------------------+ Best States ------------- Heat Dissipation 28 Energy Generation 14 Energy Capacity 160 Matter Stores 300 Matter Capacity 300 Sight Range 16 Robot Scan Range 14 Terrain Scan Density 10 Armor Coverage 150 Evasion (%) 41 Recoil Reduction 2 Item Schematics ----------------- None Robot Schematics ------------------ None Fabricated ------------ Nothing Repaired ---------- Nothing Studied --------- None Alien Tech Used ----------------- None Achievements -------------- None Challenges ------------ None Game ------ Seed BurstHardcellBlaster Manual? 0 Play Time 00:17:03 Cumulative 167.5 hours Start 2026.07.19 @ 16:33:08 End 2026.07.19 @ 17:02:15 Sessions 1 Manual Loads 0 Difficulty Rogue Special Mode None Game No. 181 Rogue 181 Adventurer 0 Explorer 0 Win Type - Total 0 Types 0/0/0/0/0/0/0/0/0/0 Lore% 57 Gallery% 45 Achievement% 32 Wizard Run 0 Options --------- Layout 0 ASCII 0 Keyboard 0 Movement Arrows Keybinds 0 Fullscreen 1 Font 20/SmallcapsGlow Map View 66x50 Zoom Use 0% Tactical HUD 1 Map Filters NONE Filters NONE Steam 1 RUN: 9172c220-978f-4a03-b7c7-8726f1109ad3